{"text_format":"1","workbook":"xlsx","n_sheets":4,"sheets":["Damer","Herrer","Ark2","Ark3"],"not_rendered":{"charts":0,"images":0,"macros":0,"external_links":0,"defined_names":0,"comments":0,"pivot_tables":0},"unopened":[],"bounds":{"document_bytes":16777216,"sheet_cells":100000,"rows_first":2000,"rows_last":500,"rows_between":2000,"halvings":0,"cell_chars":16384,"cell_head_chars":4096},"cells_cut":0,"cells_raw":0,"read":"whole","date_system":"1900"}

{"sheet":"Damer","index":0,"n_rows":18,"n_cols":17,"rows_kept":18,"cut":false,"hidden":false,"merged":[]}
["Navn","Klubb","Team","Klasse","F.år","Skikrets","Total","Snø","Sum","Gjerpenkollen 20.06","Midtstuen 21.06","Lysgårdsbakken 22.06","PM Midtstuen 31.08","GP Almaty 20.09","GP Almaty 21.09","COC Granåsen 27.09","COC Granåsen 28.09"]
["Maren Lundby","Kolbukameratene","Lillehammerhopp","K NC Elite",1994,"Oppland Skikrets",{"$f":"SUM(H2:I2)","v":18505},13861,{"$f":"SUM(J2:BA2)","v":4644},490,480,500,480,750,670,686,588]
["Line Jahr","Vikersund IF","Lillehammerhopp","K NC Elite",1984,"Buskerud Skikrets",16918,12496,4422,500,500,490,500,850,910,null,672]
["Gyda Enger","Hernes IL","Lillehammerhopp","K NC Elite",1993,"Hedmark Skikrets",15360,11464,3896,480,490,480,490,710,null,609,637]
["Anna Odine Strøm","Alta IF","Hedmarkhopp","K NC B",1998,"Finnmark",10473,9283,1190,null,null,null,null,null,null,623,567]
["Helena Olsson Smeby","Byåsen Skiklubb",null,"K Elite",null,"Sør-Tr.lag Skikrets",9355,9355,0]
["Anette Sagen","Helfjell IL","Flying Team Vikersund","K NC elite",1985,"Nordland Skikrets",7714,5998,1716,null,null,null,470,null,null,595,651]
["Anniken Mork","Ready",null,"K NC B",1991,"Oslo",6014,4439,1575,null,null,null,462,null,null,553,560]
["Marthe Pauline  Skinnes","Ivrig IL","Flying Team Vikersund","K NC C",1994,"Buskerud Skikrets",5775,4491,1284,null,null,null,454,null,null,420,410]
["Karoline Andrea Røstad","Skogn IL",null,"K NC A",1995,"Nord-Tr.lag Skikrets",4702,3772,930,null,null,null,null,null,null,490,440]
["Jenny Synnøve Hagemoen","Gausdal SL","NTG","K NC Elite",1993,"Oppland skikrets",4030,4030,0]
["Tonje Bakke","Elverum Hopp","Hedmarkhopp","K RC A",null,"Hedmark Skikrets",3467,2577,890,null,null,null,null,null,null,460,430]
["Maria Beisvåg","Jardar IL","Kollenhopp","K RC A"," ","Akershus",650,650,0]
["Sara Melø","Namdalseid IL",null,"K RC",1998,"Nord-Tr.lag Skikrets",475,0,475,null,null,null,null,null,null,null,475]
["Silje Opseth","Holeværingen IL","Flying Team Vikersund","K NC",1999,"Buskerud Skikrets",430,430,0]
["Thea Øihaugen","Gausdal SL",null,"K NC",2001,"Oppland Skikrets",422,422,0]
["Hanna Midtsundstad","Vaaler IF","Hedmarkhopp","K NC",1999,"Hedmark Skikrets",414,414,0]
["Mari Leinan Lund","Tolga IL","Hedmarkhopp","K NC",1999,"Hedmark Skikrets",406,406,0]

{"sheet":"Herrer","index":1,"n_rows":195,"n_cols":31,"rows_kept":195,"cut":false,"hidden":false,"merged":[]}
["ETTERNAVN","FORNAVN","KLUBB","TEAM","KLASSE","F.år","SKIKRETS","TOTAL","SNØ14","SUM","Gjerpenkollen 20.06","Midtstuen 21.06","Lysgårdsbakken 22.06","GP Wisla 26.07","COC Wisla 1-2.8","GP Einsiedeln 09.08","GP Courchevel 15.08","GP Hakuba 23.08","GP Hakuba 24.08","PM Midtstuen 31.08","PM Granåsen 04.09","COC Kljingenthal 13.09","COC Kljingenthal 14.09","COC Stams 20.09","COC Stams 21.09","GP Almaty 20.09","GP Almaty 21.09","COC Granåsen 27.09","COC Granåsen 28.09","GP Hinzenbach 28.09","GP Klingenthal 04.10"]
["Bardal ","Anders","Steinkjer skiklubb","Trønderhopp","M NC Elite",1982,"N-Tr.lag",{"$f":"SUM(I2+J2)","v":24962},21320,{"$f":"SUM(K2:CZ2)","v":3642},462,470,500,null,null,null,null,null,null,null,490,null,null,null,null,null,null,null,null,830,890]
["Fannemel","Anders","Hornindal IL","Lillehammerhopp","M NC Elite",1991,"Sogn og Fjordane ",21505,16302,5203,470,500,446,890,null,550,690,null,null,384,454,null,null,null,null,null,null,null,null,413,406]
["Velta ","Rune","Lommedalen IL","Kollenhopp","M NC Elite",1989,"Akershus",19196,14187,5009,490,480,490,870,null,441,378,null,null,500,null,null,null,null,null,null,null,null,null,420,940]
["Stjernen","Andreas","Sprova","Trønderhopp","M NC Elite",1988,"N.Tr.lag",18043,12257,5786,454,430,438,910,null,710,1000," ",null,406,438,null,null,null,null,null,null,null,null,580,420]
["Hauer ","Joachim","Bækkelaget SK","Kollenhopp","M NC Elite",1991,"Oslo",16806,11132,5674,446,446,406,null,null,null,null,null,null,480,462,null,679,679,588,null,null,370,553,null,565]
["Tande ","Daniel Andrè","Kongsberg IF","Flying Team Vikersund","M NC Elite",1994,"Buskerud  ",16638,9799,6839,406,454,398,null,1141,830,790,940,970,430,480]
["Johansson  ","Robert","Søre Ål IL","Lillehammerhopp","M NC Elite",1990,"Oppland",15868,13220,2648,438,438,392,null,null,null,null,null,null,414,392,null,null,null,null,null,null,574]
["Sjøen ","Phillip","Bækkelaget SK","Kollenhopp","M NC Elite",1995,"Oslo  ",15488,7678,7810,500,490,480,null,null,630,970,1000,1000,490,500,null,null,null,null,810,940]
["Hilde","Tom","Asker SK","Kollenhopp","M NC Elite",1987,"Akershus  ",14451,9240,5211,480,462,422,810,null,565,910,null,null,422,430,null,null,null,null,null,null,null,null,710]
["Søberg ","Sigurd Nymoen","Furnes Skil.for","Lillehammerhopp","M NC Elite",1994,"Hedmark",12035,7443,4592,null,null,366,null,null,null,null,null,null,462,446,609,630,440,535,null,null,644,460]
["Grimsrud ","Simen Key","Asker Skiklubb","Kollenhopp","M NC Elite",1992,"Akershus",12029,11309,720,null,null,null,null,null,null,null,null,null,378,342]
["Ingvaldsen ","Ole Marius","Steinkjer SK","Trønderhopp","M NC Elite",1985,"N.Tr.lag",11693,11333,360,null,null,null,null,null,null,null,null,null,360]
["Rønsen  ","Atle Pedersen","Eidsvold IF","Lillehammerhopp","M NC Elite",1988,"Akershus",11147,9323,1824,378,366,378,null,null,null,null,null,null,304,398]
["Bergquist ","Hans Petter","Aurskog/Finstadbru","Kollenhopp","M NC Elite",1994,"Akershus",10826,8282,2544,414,406,430,null,null,null,null,null,null,438,406,null,null,null,null,null,null,null,450]
["Granerud","Halvor Egner","Asker Skiklubb","Kollenhopp","M NC Elite",1996,"Akershus",10026,5485,4541,372,372,414,null,null,null,null,null,null,470,422,null,440,460,505,null,null,505,581]
["Forfang ","Johann Andrè","Tromsø Skiklub","Trønderhopp","M NC Elite",1995,"Troms",9608,7886,1722,null,null,null,null,null,null,null,null,null,204,384,null,null,null,null,null,null,567,567]
["Swensen ","Vegard  ","Asker SK","Lillehammerhopp","M NC Elite",1986,"Akershus",9397,9397,0]
["Halvorsen ","Espen Enger","Eidsvold Værks Sk","Lillehammerhopp","M NC Elite",1990,"Akershus",8485,5486,2999,398,414,454,null,null,null,null,null,null,392,378,null,null,null,null,null,null,553,410]
["Sorsell ","Kim Rene Elverum","Ullensaker Skikl","Kollenhopp","M NC Elite",1988,"Akershus",8191,4166,4025,null,null,null,null,null,null,null,null,null,454,470,null,581,567,616,null,null,665,672]
["Skinnes ","Stian Andrè","Gjerpenkollen hoppklubb","Flying Team Vikersund","M NC Elite",1991,"Buskerud",7766,5904,1862,422,378,372,null,null,null,null,null,null,336,354]
["Bjerkeengen ","Fredrik","Kolbukameratene","Lillehammerhopp","M NC Elite",1988,"Oppland",7746,7020,726,null,null,null,null,null,null,null,null,null,348,378]
["Pedersen ","Robin","Stålkameratene IL","Trønderhopp","M NC Elite",1996,"Nordland",7277,6631,646,null,null,null,null,null,null,null,null,null,316,330]
["Jacobsen ","Anders","Ringkollen Skiklubb","Flying Team Vikersund","M NC Elite",null,"Buskerud",7247,7247,0]
["Fuhre ","Jan","Vikersund IF","Trønderhopp","M NC Elite",1991,"Buskerud",7207,6991,216,null,null,null,null,null,null,null,null,null,null,216]
["Hammer ","Tord Markussen","Tromsø Skiklub","Trønderhopp","M NC Elite",1988,"Troms  ",7170,6588,582,null,null,null,null,null,null,null,null,null,222,360]
["Berggaard","Mats Søhagen","Ringkollen Skiklubb","Flying Team Vikersund","M NC Elite",1995,"Buskerud",7150,7150,0]
["Brandt ","Johan Martin","Steinkjer SK","Trønderhopp","M NC Elite",1987,"N.Tr.lag",6780,6780,0]
["Søgård ","Jonas Gropen","Løten/Nordbygda","NTG","M NC Elite",1996,"Hedmark",6396,5836,560,null,null,null,null,null,null,null,null,null,274,286]
["Nedrejord ","Ole Mathis","Nordlys IL","NTG","M NC Elite",1996,"Finnmark",6313,6313,0]
["Strand ","Knut Jokerud","Vikersund IF","Flying Team Vikersund","M NC Elite",1996,"Buskerud",6281,4571,1710,430,398,384,null,null,null,null,null,null,252,246]
["Røe ","Espen  ","Tolga IL","Trønderhopp","M NC Elite",1993,"Hedmark  ",6008,4636,1372,null,null,null,null,null,null,null,null,null,366,366,null,null,null,null,null,null,270,370]
["Bjøreng ","Joacim Ødegård","Røykenhopp","Flying Team Vikersund","M NC Elite",1995,"Buskerud",5873,4273,1600,384,360,354,null,null,null,null,null,null,234,268]
["Gangnes ","Kenneth","Kolbukameratene","Lillehammerhopp","M NC Elite",1989,"Oppland  ",{"$f":"SUM(I34+J34)","v":5442},0,{"$f":"SUM(K34:CZ34)","v":5442},null,392,462,null,null,null,null,null,null,454,414,535,588,609,651,null,null,686,651]
["Sklett  ","Vegard Haukø","Grong IL","Trønderhopp","M NC Elite",1986,"N.Tr.lag",5062,4460,602,null,null,null,null,null,null,null,null,null,292,310]
["Sumstad ","Are","Sør-Fron IL","NTG","M NC Elite",1996,"Oppland",4883,4243,640,null,null,null,null,null,null,null,null,null,292,348]
["Stenseth ","Mathis Rebne","Furnes Skil.for","NTG","M NC Elite",1995,"Hedmark",4604,4096,508,null,null,null,null,null,null,null,null,null,210,298]
["Vellupillai ","Rishi","Liabygda IL","NTG","M NC A",1997,"N.Tr.lag",4578,4014,564,null,null,null,null,null,null,null,null,null,228,336]
["Hulløen ","Bendik Netland","Oddersjaa SSK","NTG","M NC Elite",1996,"Agder/Rogaland",4516,4242,274,null,null,null,null,null,null,null,null,null,null,274]
["Aune ","Joakim","Byåsen IL","Trønderhopp","M NC Elite",1993,"S.Tr.lag",4380,3592,788,null,null,null,null,null,null,null,null,null,398,null,null,null,null,null,null,null,390]
["Madsen ","Jørgen","Skimt IL","Kollenhopp","M NC Elite",1994,"Akershus",4326,3972,354,null,null,null,null,null,null,null,null,null,354]
["Henriksen","Andreas Tyholt","Stjørdals-Blink IL","Trønderhopp","M NC A",1994,"N.Tr.lag",4252,4252,0]
["Henningsen ","Alexander","Tromsø Skiklub","Lillehammerhopp","M NC A",1994,"Troms",4209,3323,886,null,null,360,null,null,null,null,null,null,274,252]
["Marø ","Idar","Alta IF","NTG","M NC A",1995,"Finnmark",4169,3695,474,null,null,null,null,null,null,null,null,null,240,234]
["Øvregård ","Jonas Schøien","Vålerenga Ski","Kollenhopp","M NC A",1994,"Oslo",4169,2809,1360,392,384,null,null,null,null,null,null,null,292,292]
["Engen","Klaus Ovlien","Aurskog/Finstadbru","Kollenhopp","M NC ",1992,"Akershus",4166,4166,0]
["Berger ","Lars Brodshaug","Eidsvold Værks Sk","NTG","M NC Elite",1995,"Akershus",4114,4114,0]
["Stensgård ","Kristian","Søre Ål IL","NTG","M NC A",1996,"Oppland",3681,3317,364,null,null,null,null,null,null,null,null,null,172,192]
["Inngjerdingen ","Christian","Øvrevoll/Hosle IL","Kollenhopp","M NC A",1996,"Oslo",3495,3317,178,null,null,null,null,null,null,null,null,null,178]
["Bråtane","Sondre Vestøl","Sogne SK","Trønderhopp","M NC A",1996,"Agder/Rogaland",3476,3196,280,null,null,null,null,null,null,null,null,null,null,280]
["Livelten","Adrian Sørensen","IL Hjelset-Fram","Lillehammerhopp","M NC A",1994,"Møre og Romsdal",3291,2511,780,null,null,348,null,null,null,null,null,null,222,210]
["Loe ","Jostein","Raufoss IL","Lillehammerhopp","M NC A",1994,"Oppland",3206,2720,486,null,null,null,null,null,null,null,null,null,246,240]
["Pedersen ","Peder Nævestad","Byaasen SK","Trønderhopp","M NC A",1995,"S.Tr.lag",3084,3084,0]
["Hellerud ","Andreas Myhre","Magnor UL","Lillehammerhopp","M NC A",1992,"Hedmark",3080,3080,0]
["Randen ","Jacob Tjåland","Folldal IL","NTG","M NC A",1996,"Hedmark",3009,3009,0]
["Haukedal ","Rickard","Bækkelaget SK","Kollenhopp","M NC A",1996,"Oslo",2899,2575,324,null,null,null,null,null,null,null,null,null,324]
["Riiber ","Jarl Magnus","Heming IL","Kollenhopp","M NC A",1997,"Oslo",2802,1538,1264,null,422,470,null,null,null,null,null,null,372]
["Sørli ","Kristoffer","Tolga IL","Trønderhopp","M NC A",1993,"Hedmark",2673,2673,0]
["Brenna","Christian","Hakadal IL","Kollenhopp","M NC A",1995,"Akershus",2494,2164,330,null,null,null,null,null,null,null,null,null,330]
["Lian","Kristian","Ivrig IL","Lillehammerhopp","M NC A",1994,"Telemark/Vestfold",2406,1990,416,null,null,null,null,null,null,null,null,null,188,228]
["Lindvik","Marius  ","Rælingen skiklubb","Kollenhopp","M NC A",1998,"Akershus",2357,2015,342,null,null,null,null,null,null,null,null,null,342]
["Hafslund ","Oskar Alexander","Nordbygda/Løtenski","NTG","M NC A",1997,"Hedmark",2262,2262,0]
["Øvregård ","Jens Schøien","Vålerenga Ski","Kollenhopp","M NC A",1996,"Oslo",2100,2100,0]
["Langård ","Jonas","Hurdal IL","Lillehammerhopp","M NC A",1993,"Akershus",2100,1912,188,null,null,null,null,null,null,null,null,null,null,188]
["Fredheim ","Kenneth Henningsmo","Nansen IL","Trønderhopp","M NC B",1997,"Hedmark",2093,1459,634,null,null,null,null,null,null,null,null,null,310,324]
["Haug","Tor Kristian","Byåsen IL","Trønderhopp","M NC B",1991,"S.Tr.lag",{"$f":"SUM(I66+J66)","v":2057},1875,{"$f":"SUM(K66:CZ66)","v":182},null,null,null,null,null,null,null,null,null,null,182]
["Næsvold ","Kjell Andreas","Røykenhopp","Flying Team Vikersund","M NC A",1996,"Buskerud",2032,2032,0]
["Hoff ","Andreas","Raufoss IL","Lillehammerhopp","M NC A",1993,"Oppland",1925,1925,0]
["Myhre","Sondre","Raufoss IL","Lillehammerhopp","M NC B",1993,"Oppland",1920,1920,0]
["Korody","Christian","Jardar IL","Kollenhopp","M NC A",1993,"Akershus",1914,1710,204,null,null,null,null,null,null,null,null,null,204]
["Myhren","Mats Bjerke","Søre Ål IL","NTG","M NC B",1997,"Oppland",1859,1859,0]
["Westerheim ","Oskar P","Bækkelaget SK","Kollenhopp","M NC A",1996,"Oslo",1789,1789,0]
["Østlie","Ola Walle","Løten/Nordbygda","Hedmarkhopp","M NC B",1995,"Hedmark",1775,1775,0]
["Melnes ","Sindre Beite","Blaker IL","NTG","M NC B",1995,"Akershus",1767,1767,0]
["Hagemoen ","Leif Marius","Gausdal Skilag","NTG","M NC A",1995,"Oppland",1733,1733,0]
["Ihle","Magnus","Jardar IL","Kollenhopp","M NC A",1997,"Akershus",1720,1720,0]
["Bakke ","Edvart Myrvang","Hedalen IL","Flying Team Vikersund","M NC B",1996,"Buskerud",1673,1375,298,null,null,null,null,null,null,null,null,null,298]
["Sandell ","Jonas","Tromsø Skiklub","Trønderhopp","M NC A",1995,"Troms",1630,1180,450,null,null,null,null,null,null,null,null,null,188,262]
["Jeremiassen ","Steffen","Skimt IL","Kollenhopp","M NC A",1997,"Akershus",1601,1409,192,null,null,null,null,null,null,null,null,null,192]
["Buskum","Andreas Granerud","Raufoss IL","NTG","M NC B",1996,"Oppland",1506,1506,0]
["Dahl ","Oliver","Byåsen IL","Trønderhopp","M NC B",1997,"S.Tr.lag",1477,1161,316,null,null,null,null,null,null,null,null,null,null,316]
["Danielsen ","Stian","Alta IF","Trønderhopp","M NC B",1996,"Finnmark",1458,1458,0]
["Ringen ","Sondre","Bækkelaget SK","Kollenhopp","M NC B",1996,"Oslo",1423,1161,262,null,null,null,null,null,null,null,null,null,262]
["Flotten ","Erlend","Tormod Skilag","NTG","M NC B",1996,"Oppland",1331,1331,0]
["Svorkdal ","Tormod","Orkdal IL","Trønderhopp","M NC B",1994,"S.Tr.lag",1300,1300,0]
["Lunnan ","Håvard Svingen","Skatval Skilag","Trønderhopp","M NC B",1996,"N.Tr.lag",1288,1090,198,null,null,null,null,null,null,null,null,null,null,198]
["Olsby ","Espen","Lensbygda Sp.klubb",null,"M NC B",null,"Oppland",1136,1136,0]
["Pettersen","Morten","Byåsen IL","Trønderhopp","M NC B",1995,"S.Tr.lag",1124,1124,0]
["Vedal","Jørgen","Rælingen skiklubb","NTG","M NC B",null,"Akershus  ",1091,1091,0]
["Viken ","Jonas","Steinkjer Skiklubb","Trønderhopp","M NC B",1997,"N.Tr.lag",1065,761,304,null,null,null,null,null,null,null,null,null,null,304]
["Loe ","Jens Fredrik","Byåsen IL","Trønderhopp","M NC B ",1996,"S.Tr.lag",1028,1028,0]
["Knapstad ","Anders","Ivrig IL","Flying Team Vikersund","M NC B",1996,"Telemark/Vestfold",993,993,0]
["Johansen ","Oskar Bærheim","Lensbygda Sp.klubb","Trønderhopp","M NC B",1996,"Oppland",988,988,0]
["Lippestad","Carl Henning","Bækkelaget SK","Kollenhopp","M NC B",1998,"Oslo",975,975,0]
["Eriksen ","Espen Alexander","Tromsø Skiklub","Trønderhopp","M NC B",1994,"Troms",927,927,0]
["Malm ","Bjørnar Kristiansen","Byåsen IL","Trønderhopp","M NC B",1995,"S.Tr.lag",842,664,178,null,null,null,null,null,null,null,null,null,null,178]
["Torkildsen","Borgar Aas","Vålerenga Ski","Kollenhopp","M NC B",null,"Akershus",804,804,0]
["Fannemel ","Brede","Hornindal IL","NTG","M NC B",1996,"Sogn og Fjordane",{"$f":"SUM(I98+J98)","v":777},777,{"$f":"SUM(K98:CZ98)","v":0}]
["Elvevold ","August","Tromsø Skiklub","Trønderhopp","M NC B",null,"Troms",731,731,0]
["Bukkholm ","Markus","Oddersjaa SSK","NTG","M NC B",1997,"Agder/Rogaland",681,681,0]
["Kvernmo","Mats Jakob","Steinkjer Skiklubb","Trønderhopp","M NC B",null,"N.Tr.lag",632,632,0]
["Bjerke","Knut  ","Rælingen skiklubb","Veteranhopp Norge","M NC B",1961,"Akershus",560,560,0]
["Ødegård","Jesper","Gausdal Skilag"," ","M NC B",1998,"Oppland",530,530,0]
["Aasberg","Nikolai","Røykenhopp","Flying Team Vikersund","M NC B",1998,"Buskerud",480,480,0]
["Holt","Ole Henning","Sannidal IL",null,"M NC B",null,"Telemark/Vestfold",418,418,0]
["Bechmann","Anders","Gjerpenkollen hoppklubb",null,"M NC C",null,"Buskerud",400,400,0]
["Pedersen ","Kristoffer","Stålkameratene IL","Trønderhopp","M NC B",1993,"Nordland",390,390,0]
["Eriksen ","Lars Erik","Rognan IL","Granåsen skiteam","M NC B",null,"Nordland",390,390,0]
["Skatvedt ","Ole Andreas","Trøgstad Skiklubb",null,"M NC B",1965,"Østfold",384,384,0]
["Garberg ","Anders Bredesen","Orkdal IL","Team ST","M NC B",1997,"S.Tr.lag",382,382,0]
["Næsvold ","Leif Torbjørn","Røykenhopp","Flying Team Vikersund","M NC B",1998,"Buskerud",366,366,0]
["Kleven","Sander  ","Gjerpenkollen hoppklubb","Flying Team Vikersund","M NC B",null,"Buskerud",347,347,0]
["Grande","Sivert  ","Steinkjer SK","Trønderhopp","M NC B",null,"N.Tr.lag",323,323,0]
["Fjorden","Sander Gjesdal","Byåsen IL","Trønderhopp","M NC B",1997,"S.Tr.lag",282,282,0]
["Wohlen ","Martin","Steinkjer Skiklubb","Team NT","M NC B",1997,"N.Tr.lag",272,272,0]
["Vethe ","Geir","Bulken IL",null,"M NC B",1977,"Hordaland",269,269,0]
["Restad ","Bjørn Iver","IL Leik","Trønderhopp","M NC B",1993,"S.Tr.lag",268,268,0]
["Ladehaug","Anders","Nordre Land IL","Lillehammer hopprekrutt","M NC B",null,"Oppland",267,267,0]
["Strøm","Jørgen Oliver","Alta IF","Hedmarkhopp","M NC B",2000,"Finnmark",267,267,0]
["Bratlien","Jonas","Bøverbru IL",null,"M NC B",null,"Oppland",260,260,0]
["Alstad ","Ola Dybvad","Skatval Skilag","Team NT","M NC C",null,"N.Tr.lag",248,248,0]
["Villumstad","Fredrik Eirinsønn","Skimt IL","Kollenhopp","M NC B",1999,"Akershus",232,232,0]
["Ingebrigtsen ","Christian","Byåsen IL","Granåsen skiteam","M NC B",1994,"S.Tr.lag",222,0,222,null,null,null,null,null,null,null,null,null,null,222]
["Markeng","Thomas Aasen","Lensbygda Sp.klubb","Lillehammer hopprekrutt","M NC B",2000,"Oppland",214,214,0]
["Braathen","Mathias","Øvrevoll/Hosle IL","Kollenhopp","M NC B",1996,"Oslo",203,203,0]
["Haare","Anders Sandberg","Vikersund IF","Flying Team Vikersund","M NC B",1999,"Buskerud",171,171,0]
["Norseng","Haakon","IL Ivrig",null,"M NC B",null,"Telemark/Vestfold",168,168,0]
["Rastad","Morten Øgar","Hurdal IL","Lillehammerhopp","M NC B",1988,"Akershus",155,155,0]
["Månum","Markus","Raufoss IL"," ","M NC B",1998,"Oppland",152,152,0]
["Leirvaag","Håkon","Botne SK","NTG","M NC B",null,"Vestfold/Telemark",{"$f":"SUM(I130+J130)","v":126},126,{"$f":"SUM(K130:CZ130)","v":0}]
["Markeng","Audun Nybu","Furnes IL","Hedmarkhopp","M NC B",1997,"Hedmark",122,122,0]
["Sommerstad","Rolf Ole","Tolga IL","Lillehammerhopp","M NC B",1992,"Hedmark",120,120,0]
["Heimdal","Oddgeir","Raufoss IL",null,"M NC B",null,"Oppland",95,95,0]
["Ringstad","Lars","Skogn IL","Granåsen skiteam","M NC B",1996,"N.Tr.lag",92,92,0]
["Myhr","Sverre Aas","Søre Ål IL",null,"M NC B",1998,"Oppland",92,92,0]
["Lislegaard","Geir Rune","Skoppum IL"," ","M NC C",1963,"Vestfold/Telemark",85,85,0]
["Slåttsveen","Lars Andreas","Kolbukameratene",null,"M NC C",null,"Oppland",72,72,0]
["Fredheim ","Ove","Hafslo IL","Veteranhopp Norge","M NC C",null,"Hordaland",63,63,0]
["Hansen","Pål Teodor","Rognan IL","Trønderhopp","M NC C",null,"Nordland",60,60,0]
["Tillung","Stian","Vargar IL"," ","M NC C",1990,"Hordaland",50,50,0]
["Smeland","Håvard  ","Vegårdshei IL","Trønderhopp","M NC C",null,"Agder/Rogaland",40,40,0]
["Kvandal","Even","Mosjøen IL"," ","M NC C",null,"Nordland",40,40,0]
["Breivik","Andreas Varsi","Tromsø Skiklub",null,"M NC B",1997,"Troms",35,35,0]
["Hage","Olav","Åsmarka IL","Veteranhopp Norge","M NC C",null,"Hedmark",30,30,0]
["Søtvik","Sindre Ure","Eldar IL","Lillehammer NC","M NC B",null,"Hordaland",0,0,0]
["Storlien","Gudmund","Mjøs-Ski","Lillehammer NC","M NC B",null,"Hedmark",0,0,0]
["Hokholt","Audun  ","Skimt IL","Kollenhopp","M NC B",null,"Akershus",0,0,0]
["Riiber ","Harald Jonas","Heming IL","Kollenhopp","M NC B",1995,"Oslo",0,0,0]
["Bjørnstad","Espen","Byåsen SK","Granåsen skiteam","M NC B",null,"S.Tr.lag",0,0,0]
["Storlien","Ole Martin","Mjøs-Ski","Lillehammer NC","M NC B",null,"Hedmark",0,0,0]
["Andersen ","Espen","Lommedalen IL","Lillehammer NC","M NC B",null,"Akershus",0,0,0]
["Lien","Øystein Granbu","Gausdal Skilag","Lillehammer NC","M NC B",null,"Oppland",0,0,0]
["Skeie","Sondre","Bulken","Lillehammerhopp","M NC B",1993,"Hordaland",0,0,0]
["Waaler","Mads Kristoffer","Aurskog/Finstadbru","Lillehammer NC","M NC B",null,"Akershus",0,0,0]
["Johansen","Truls S","Elverum Hopp","Lillehammer NC","M NC B",null,"Hedmark",0,0,0]
["Gaarder","Jens","Raufoss IL",null,"M NC B",null,"Oppland",0,0,0]
["Torgersen","Hans Erik Lie","Søre Ål IL","Lillehammerhopp","M NC B",1991,"Oppland",0,0,0]
["Johansen","Marius Fredrik","Leknes&Omegn","Trønderhopp","M NC B",1989,"Nordland  ",0,0,0]
["Fannemel","Lorentz","Hornindal IL","NTG","M NC B",1994,"Sogn og Fjordane",0,0,0]
["Stea","Henning","Sogne SK","Sørlandshopp","M NC B",1995,"Agder/Rogaland",0,0,0]
["Ruud ","Eivind Østlund","Røykenhopp","Flying Team Vikersund","M NC B",1994,"Buskerud",0,0,0]
["Rodahl ","Sondre Johannes","Lommedalen IL","Kollenhopp","M NC B",1994,"Akershus",{"$f":"SUM(I162+J162)","v":0},0,{"$f":"SUM(K162:CZ162)","v":0}]
["Ristad ","Mathias","Overhalla IL","Trønderhopp","M NC B",1992,"N.Tr.lag",0,0,0]
["Overrein ","Kristoffer Ertzaas","Byåsen IL","Team ST","M NC B",1997,"S.Tr.lag",0,0,0]
["Olsen","Andrè Nyeng","Byåsen IL","Granåsen skiteam","M NC B",1989,"S.Tr.lag",0,0,0]
["Mauseth","Martin Dannevig","Molde og Omegn IF",null,"M NC B",1997,"Møre&Romsdal",0,0,0]
["Håland ","Sondre","Øyestad IF","Sørlandshopp","M NC B",1995,"Agder/Rogaland",0,0,0]
["Høidal","Lars Martin","Ready","Kollenhopp","M NC B",null,"Oslo",0,0,0]
["Hasdal","Olav Haugen","Gjerstad IL","Sørlandshopp","M NC B",null,"Agder/Rogaland",0,0,0]
["Hansen","Ragnar","Byåsen IL","Granåsen skiteam","M NC B",null,"S.Tr.lag",0,0,0]
["Gyth-Dehli","Ole Fredrik","Botne SK","Lillehammerhopp","M NC B",1992,"Vestfold/Telemark",0,0,0]
["Eikehaug ","Jarle","Ørn IF","Flying Team Vikersund","M NC B",1996,"Telemark/Vestfold",0,0,0]
["Børve","Sjur Hovdal","Snøhetta IL","Granåsen skiteam","M NC B",1995,"S.Tr.lag",0,0,0]
["Buraas","Lars","Hurdal IL",null,"M NC B",1995,"Akershus",0,0,0]
["Brendryen","Aleksander","Byåsen IL","Team ST","M NC B",1996,"S.Tr.lag",0,0,0]
["Aalien ","Fredrik","Eggedal IL","Flying Team Vikersund","M NC B",1993,"Buskerud",0,0,0]
["Værås","Jon","Rollag og Veggli",null,"M NC C",null,"Buskerud",0,0,0]
["Villesvik","Stein Arne","Østre Aker skiklubb","Veteranhopp Norge","M NC C",null,"Oslo",0,0,0]
["Tenstad","Petter  ","Kongsberg IF",null,"M NC C",null,"Buskerud",0,0,0]
["Tellefsen","Jan Erik","Pors IF",null,"M NC C",null,"Telemark/Vestfold",0,0,0]
["Sørbø ","Ingebrigt","Gjerstad IL",null,"M NC C",null,"Agder/Rogaland",0,0,0]
["Søgaard","Svenn-Martin","Vallset IL","Hedmarkhopp","M NC C",null,"Hedmark  ",0,0,0]
["Skårset ","Ivar","Søre Ål IL",null,"M NC C",null,"Oppland",0,0,0]
["Ringkilen ","Torry","Horten SK","Veteranhopp Norge","M NC C",null,"Telemark/Vestfold",0,0,0]
["Lunde","Egil","Røykenhopp","Veteranhopp Norge","M NC C",null,"Buskerud",0,0,0]
["Lundby","Håkon","Kolbukameratene",null,"M NC C",null,"Oppland",0,0,0]
["Kalleberg ","Pål","Østre Aker skiklubb","Veteranhopp Norge","M NC C",null,"Oslo",0,0,0]
["Kaardal","Tom","Horten SK",null,"M NC C",null,"Telemark/Vestfold",0,0,0]
["Jørgensen ","Arne","Horten SK","Veteranhopp Norge","M NC C",null,"Telemark/Vestfold",0,0,0]
["Ilestad","Egil","Botne SK",null,"M NC C",null,"Telemark/Vestfold",0,0,0]
["Haaheim","Pål","Froland IL",null,"M NC C",null,"Agder/Rogaland",0,0,0]
["Gullbekk","Tom","Røykenhopp",null,"M NC C",null,"Buskerud",0,0,0]
["Berger ","Fredrik","Røykenhopp",null,"M NC C",null,"Buskerud",0,0,0]
["Andersen ","Per Espen","Øyestad IF",null,"M NC C",null,"Agder/Rogaland",{"$f":"SUM(I194+J194)","v":0},0,{"$f":"SUM(K194:CZ194)","v":0}]
["Aas ","Erlend","Byåsen IL","Team ST","M NC C",null,"S.Tr.lag",0,0,0]

{"sheet":"Ark2","index":2,"n_rows":0,"n_cols":0,"rows_kept":0,"cut":false,"hidden":false,"merged":[]}

{"sheet":"Ark3","index":3,"n_rows":0,"n_cols":0,"rows_kept":0,"cut":false,"hidden":false,"merged":[]}